bitfinex/quotes_ETHUSD_20240819
["timestamp","ask_amount","ask_price","bid_price","bid_amount"]
[1724032642779,2.3153,2634.7,2634.4,3.79592]
[1724032643015,2.3153,2634.7,2634.4,7.59184]
[1724032643203,2.3153,2634.7,2634.4,3.79592]
[1724032644381,2.3153,2634.7,2634.4,3.79585]
[1724032644598,2.3153,2634.7,2634.4,7.59169]
[1724032644927,2.3153,2634.7,2634.4,3.79584]
[1724032647324,2.3153,2634.7,2634.2,3.79614]
[1724032647325,2.3153,2634.7,2634.2,3.79611]
[1724032647488,2.3153,2634.7,2634.2,7.59225]
[1724032648142,2.3153,2634.7,2634.2,3.79611]
[1724032648313,2.3153,2634.7,2634.3,3.79594]
[1724032648492,2.3153,2634.7,2634.4,3.79589]
[1724032648810,2.3153,2634.7,2634.4,7.59178]
[1724032649024,3.79514,2635.0,2634.4,7.59178]
[1724032649025,2.2505,2634.9,2634.5,3.79576]
[1724032650338,10.28090762,2635.2,2634.6,3.79554]
[1724032650339,5.88123162,2635.2,2634.6,3.79554]
[1724032650543,5.88123162,2635.2,2634.8,3.79535]
[1724032650544,2.2505,2635.1,2634.8,3.79535]
[1724032650700,2.2505,2635.1,2634.6,7.59108]
[1724032650900,3.79506,2635.0,2634.1,3.68600403]
[1724032651148,3.79537,2634.8,2634.2,10.59226]
[1724032651442,3.79537,2634.8,2634.2,10.59225]
[1724032651637,3.79551,2634.7,2634.2,6.79612]
[1724032651940,2.2505,2634.6,2634.3,3.79605]
[1724032652843,2.2787,2634.8,2634.4,3.79588]
[1724032653841,2.2787,2634.8,2634.4,7.59172]
[1724032654145,2.2787,2634.8,2634.4,3.79584]
[1724032654706,2.2787,2634.8,2634.2,3.7961]
[1724032655219,2.2787,2634.8,2634.3,3.79599]
[1724032656306,3.265605,2634.8,2634.3,3.79599]
[1724032657233,2.2787,2634.8,2634.3,3.79599]
[1724032659757,2.2787,2634.8,2634.2,0.83655148]
[1724032659981,2.2787,2634.8,2634.3,3.79595]
[1724032660264,2.2787,2634.8,2634.4,3.79585]
[1724032664526,2.2787,2634.8,2634.5,3.79578]
[1724032665624,2.2787,2634.8,2634.4,3.79588]
[1724032666433,2.2787,2634.8,2634.4,5.41688]
[1724032667759,3.79551,2634.7,2634.1,3.79622]
[1724032667962,3.79551,2634.7,2634.0,1.32574413]
[1724032667963,2.3718,2634.4,2634.0,1.621]
[1724032668266,2.3718,2634.4,2634.1,0.83661109]
[1724032668571,2.3718,2634.4,2634.0,1.621]
[1724032668862,2.3718,2634.4,2634.1,0.83662169]
[1724032669061,2.3718,2634.4,2634.0,1.621]
[1724032669366,6.16774,2634.4,2634.1,0.83663744]
[1724032669667,2.3718,2634.4,2634.0,1.621]
[1724032669826,2.3718,2634.4,2634.1,0.83663324]
[1724032670023,2.3718,2634.4,2634.2,0.83663324]
[1724032670229,2.3718,2634.4,2634.0,5.4175]
[1724032670467,2.3718,2634.4,2634.1,0.83661775]
[1724032670674,2.3718,2634.4,2634.2,0.83661775]
[1724032670869,2.3718,2634.4,2634.0,1.621]
[1724032671039,2.3718,2634.4,2634.1,0.8366215]
[1724032671246,2.3718,2634.4,2634.2,0.8366215]
[1724032671557,2.3718,2634.4,2634.0,5.4175]
[1724032671726,2.3718,2634.4,2634.1,0.83660991]
[1724032671942,2.3718,2634.4,2634.2,0.83660991]
[1724032672171,2.3718,2634.4,2634.0,5.4175]
[1724032672340,2.3718,2634.4,2634.1,1.67321664]
[1724032672593,2.3718,2634.4,2634.2,0.83660832]
[1724032672894,2.3718,2634.4,2634.1,0.83660832]
[1724032673218,2.3718,2634.4,2634.2,6.25378814]
[1724032673397,2.3718,2634.4,2634.2,5.41719]
[1724032677226,2.3718,2634.4,2634.3,0.83657233]
[1724032677404,2.4833,2634.8,2634.3,0.83657233]
[1724032677613,2.4833,2634.8,2634.4,6.25334043]
[1724032677831,2.4833,2634.8,2634.4,9.21264]
[1724032678125,2.4833,2634.8,2634.4,5.4168]
[1724032678626,2.4833,2634.8,2634.4,9.21262]
[1724032679381,2.4833,2634.8,2634.5,3.79577]
[1724032679935,12.05710162,2635.1,2634.6,1.621]
[1724032680270,2.3809,2635.4,2635.1,3.79478]
[1724032680395,2.3809,2635.4,2635.3,3.79463]
[1724032681621,3.79356,2636.1,2635.4,3.79444]
[1724032681622,2.3663,2635.8,2635.4,3.79444]
[1724032681831,2.3663,2635.8,2635.4,5.41544]
[1724032682563,2.3663,2636.2,2635.3,0.07588528]
[1724032682692,6.15972,2636.2,2635.6,3.7941]
[1724032682897,0.615958,2636.1,2635.5,3.79424]
[1724032683138,0.615958,2636.1,2635.6,3.79416]
[1724032683334,6.15972,2636.2,2635.7,3.79404]
[1724032683335,2.3663,2636.2,2635.7,3.79404]
[1724032683656,2.3663,2636.2,2635.6,3.79416]
[1724032683657,6.15965,2636.2,2635.6,3.79416]
[1724032683927,0.23663,2636.1,2635.6,3.79416]
[1724032684328,0.23663,2636.1,2635.6,7.58827]
[1724032684533,0.23663,2636.1,2635.6,3.79411]
[1724032685452,0.23663,2636.1,2635.6,3.7941]
[1724032686601,2.3663,2636.0,2635.6,3.7941]
[1724032686835,2.3663,2635.9,2635.2,3.0]
[1724032687133,2.3663,2635.7,2635.3,3.79463]
[1724032687714,2.3663,2635.7,2635.1,3.79491]
[1724032687929,3.79394,2635.8,2635.0,3.79496]
[1724032687930,2.3663,2635.5,2635.0,3.79496]
[1724032688441,6.16064,2635.5,2634.9,3.79507]
[1724032688628,3.006023,2635.5,2635.0,3.79502]
[1724032689142,2.3663,2635.5,2635.1,3.79488]
[1724032689447,2.3663,2635.5,2635.1,7.5897]
[1724032689601,2.3663,2635.5,2635.1,3.79482]
[1724032689801,2.3663,2635.5,2635.2,3.79466]
[1724032690005,2.3663,2635.5,2635.1,3.79482]
[1724032690645,3.7945,2635.4,2634.9,3.7951]
[1724032690841,2.4436,2635.3,2634.9,3.79518]
[1724032691142,3.091073,2635.3,2634.9,3.79518]
[1724032691352,2.4436,2635.3,2634.9,3.79509]
[1724032693115,2.4436,2635.3,2635.1,3.79488]
[1724032694118,2.4436,2635.3,2635.1,3.79483]
[1724032694573,2.4436,2635.3,2635.1,7.58966]
[1724032695189,2.4436,2635.3,2635.1,3.79483]
[1724032696848,2.4436,2635.3,2635.1,7.58966]
[1724032697255,2.4436,2635.3,2635.1,3.79483]
[1724032698072,2.4436,2635.3,2635.1,7.58966]
[1724032698312,2.4436,2635.3,2635.1,3.79483]
[1724032698647,2.4436,2635.3,2635.2,3.79477]
[1724032698883,8.35953162,2635.6,2635.3,3.79461]
[1724032701582,8.35953162,2635.6,2635.1,3.79479]
[1724032701783,9.57487778,2635.6,2635.2,3.79473]
[1724032702485,9.57487778,2635.6,2635.1,3.79479]
[1724032702486,8.35953162,2635.6,2635.3,3.79463]
[1724032703763,2.4783,2635.6,2635.3,3.79463]
[1724032704164,2.4783,2635.6,2635.1,7.58962]
[1724032704378,2.4212,2635.5,2635.1,3.79479]
[1724032704703,2.4212,2635.5,2635.1,5.41479]
[1724032705862,2.4212,2635.5,2635.1,9.20963]
[1724032706672,2.4212,2635.5,2635.1,9.20961]
[1724032706888,2.4212,2635.5,2635.2,3.79477]
[1724032707109,2.4212,2635.5,2635.1,9.20961]
[1724032708133,2.4212,2635.5,2635.2,3.79475]
[1724032709500,2.478,2635.9,2635.7,3.79398]
[1724032709708,2.478,2635.9,2635.8,1.62]
[1724032710530,2.478,2635.9,2635.5,3.79431]
[1724032711120,2.478,2635.9,2635.3,6.7945]
[1724032711334,2.4045,2635.8,2635.4,3.79439]
[1724032711518,2.4045,2635.8,2635.4,4.63059288]
[1724032711760,2.4045,2635.8,2635.4,3.79439]
[1724032713737,2.4045,2635.8,2635.5,4.63053439]
[1724032714039,2.4045,2635.8,2635.5,3.79434]
[1724032718131,2.4045,2635.8,2635.5,7.5886]
[1724032718340,2.4045,2635.8,2635.5,3.79426]
[1724032718520,2.4045,2635.8,2635.5,7.58851]
[1724032721624,2.4045,2635.8,2635.5,3.79425]
[1724032723233,2.4045,2635.8,2635.5,7.58851]
[1724032723460,2.4045,2635.8,2635.6,3.79416]
[1724032727570,2.4045,2635.8,2635.5,3.79425]
[1724032729243,2.64495,2635.8,2635.1,8.46733772]
[1724032729584,2.4364,2635.2,2634.7,8.37731772]
[1724032729730,2.4364,2635.2,2634.8,5.95199461]
[1724032730069,2.4364,2635.2,2634.9,0.83637796]
[1724032730369,2.4364,2635.2,2634.8,3.79533]
[1724032730571,2.4364,2635.2,2634.9,0.8363871]
[1724032730852,2.4364,2635.2,2634.8,5.41533]
[1724032731064,2.4364,2635.2,2635.1,3.79492]
[1724032731725,2.4364,2635.2,2635.1,4.63120377]
[1724032731926,2.4364,2635.5,2635.2,3.79467]
[1724032732146,2.4364,2635.5,2635.2,5.41467]
[1724032732342,2.4364,2635.5,2635.4,5.41449]
[1724032732549,2.4364,2635.5,2635.4,3.79449]
[1724032732745,2.4364,2635.5,2635.3,3.79462]
[1724032735782,2.4364,2635.5,2635.1,3.79483]
[1724032735952,2.4364,2635.5,2635.2,0.83626851]
[1724032736182,2.4364,2635.5,2635.1,3.79479]
[1724032736372,2.4364,2635.5,2635.2,0.83625867]
[1724032736549,2.4364,2635.5,2635.2,3.79469]
[1724032738890,3.059446,2635.5,2635.0,5.77524527]
[1724032739182,6.853796,2635.5,2635.0,3.795]
[1724032739381,6.853796,2635.5,2635.1,0.83631533]
[1724032739585,6.853796,2635.5,2635.0,3.795]
[1724032740090,3.059446,2635.5,2635.1,0.83632292]
[1724032740251,2.4364,2635.5,2635.1,3.7949]
[1724032740485,2.4364,2635.5,2635.2,3.79477]
[1724032741068,2.4364,2635.5,2635.3,3.7946]
[1724032741264,6.25634,2636.0,2635.5,3.79434]
[1724032741585,6.25634,2636.0,2635.5,3.79426]
[1724032742289,10.05005,2636.0,2635.5,3.79426]
[1724032742492,0.625634,2635.9,2635.5,3.79426]
[1724032742801,6.25634,2636.0,2635.5,3.79426]
[1724032743274,6.2565,2635.9,2635.3,3.79455]
[1724032743452,2.3805,2635.8,2635.4,0.83621358]
[1724032743649,2.3805,2635.8,2635.3,3.79455]
[1724032744088,2.3805,2635.8,2635.3,7.5891]
[1724032744657,2.3805,2635.8,2635.5,3.79434]
[1724032745400,2.3805,2635.8,2635.4,0.83620517]
[1724032745595,2.3805,2635.8,2635.3,3.7945]
[1724032745887,2.3805,2635.8,2635.4,0.83621695]
[1724032746187,2.3805,2635.8,2635.3,3.7945]
[1724032746798,6.17443,2635.8,2635.3,3.7945]
[1724032747701,2.3805,2635.8,2635.4,3.79446]
[1724032748074,2.3805,2635.8,2635.3,3.7945]
[1724032748275,2.3805,2635.8,2635.3,7.58904]
[1724032748488,2.3805,2635.8,2635.3,3.7945]
[1724032748703,2.3805,2635.8,2635.4,0.83620962]
[1724032748903,2.3805,2635.8,2635.3,3.7945]
[1724032749106,2.3805,2635.8,2635.4,0.83621546]
[1724032749285,2.3805,2635.8,2635.3,5.77456079]
[1724032749487,2.3805,2635.8,2635.4,0.83620435]
[1724032749666,2.3805,2635.8,2635.3,3.7945]
[1724032750268,2.3805,2635.8,2635.4,0.83622353]
[1724032750472,2.3805,2635.8,2635.3,7.58905]
[1724032750937,2.3805,2635.8,2635.4,4.63070687]
[1724032751106,2.3805,2635.8,2635.4,3.79448]
[1724032751502,2.3805,2635.8,2635.5,3.79426]
[1724032752601,6.27224,2636.0,2635.5,3.79426]
[1724032753620,6.27224,2636.0,2635.5,7.58852]
[1724032753775,6.27224,2636.0,2635.5,3.79426]
[1724032754306,2.4356,2635.9,2635.4,3.79447]
[1724032754896,2.4356,2635.9,2635.5,3.79433]
[1724032755212,2.4356,2635.9,2635.5,7.58857]
[1724032755508,2.4356,2635.9,2635.7,3.79393]
[1724032755670,2.4356,2635.9,2635.7,7.58789]
[1724032756317,2.4356,2635.9,2635.7,3.79393]
[1724032758478,5.88123162,2636.3,2635.7,3.79393]
[1724032758715,3.79313,2636.4,2635.7,3.79393]
[1724032758716,2.4197,2636.2,2635.7,3.79393]
[1724032759706,2.4197,2636.2,2635.9,3.79367]
[1724032761317,3.79313,2636.4,2636.1,3.79336]
[1724032761318,2.4067,2636.4,2636.1,3.79336]
[1724032761692,2.4067,2636.4,2636.0,3.79355]
[1724032762013,2.4067,2636.4,2636.1,3.79339]
[1724032765987,2.4067,2636.4,2635.8,5.41282]
[1724032766118,0.24067,2636.3,2635.8,5.41282]
[1724032766458,0.24067,2636.3,2635.8,1.619]
[1724032766459,2.3241,2636.2,2635.8,1.619]
[1724032768512,2.3241,2636.2,2635.7,3.79403]
[1724032768701,6.11745,2636.2,2635.7,3.79403]
[1724032772981,2.3241,2636.2,2635.7,3.79397]
[1724032773249,6.11745,2636.2,2635.7,3.79397]
[1724032773599,2.3241,2636.0,2635.6,0.83610526]
[1724032773735,2.3241,2636.0,2635.6,3.0]
[1724032774417,2.3681,2635.9,2635.2,3.79469]
[1724032774625,1.0522767,2636.0,2635.2,3.79469]
[1724032774626,2.3681,2635.7,2635.3,3.83614566]
[1724032774833,2.3681,2635.7,2635.4,0.83614566]
[1724032775017,2.3681,2635.7,2635.2,3.0]
[1724032775223,2.3681,2635.7,2635.3,0.83622848]
[1724032775545,2.3681,2635.7,2635.2,3.0]
[1724032775845,2.3681,2635.7,2635.3,4.63086285]
[1724032776010,2.3681,2635.7,2635.4,3.0]
[1724032782175,2.3898,2635.5,2635.1,6.79483]
[1724032782344,2.3898,2635.5,2635.2,7.63098794]
[1724032782547,2.3898,2635.5,2635.2,6.79476]
[1724032783346,2.2537,2635.9,2635.4,3.79439]
[1724032783668,2.2537,2635.9,2635.5,0.83613832]
[1724032783875,2.2537,2635.9,2635.4,3.79439]
[1724032784076,2.2537,2635.9,2635.5,0.83613338]
[1724032784371,2.2537,2635.9,2635.6,3.79417]
[1724032784541,2.2537,2635.9,2635.6,7.58834]
[1724032784949,2.2537,2635.9,2635.6,7.58828]
[1724032785145,2.2537,2636.2,2635.8,3.79391]
[1724032787382,6.04704,2636.2,2635.7,3.79405]
[1724032788074,2.2537,2636.2,2635.7,3.79405]
[1724032789556,2.2537,2636.2,2635.8,3.79387]
[1724032790476,2.2537,2636.2,2635.8,5.41287]
[1724032794459,2.2537,2636.2,2635.8,1.619]
[1724032797247,2.2537,2636.2,2635.8,5.41289]
[1724032798990,6.14768,2636.6,2636.0,5.41252]
[1724032799292,3.7929,2636.5,2636.0,5.41252]
[1724032799465,2.3241,2636.4,2636.0,5.41252]
[1724032800165,4.99579116,2636.5,2635.8,3.79385]
[1724032800365,2.4344,2636.4,2636.0,1.619]
[1724032800751,3.79328,2636.3,2636.0,1.619]
[1724032800987,3.79328,2636.3,2635.8,3.79385]
[1724032800988,6.22774,2636.2,2635.8,1.619]
[1724032801157,2.4344,2636.1,2635.7,0.83609814]
[1724032801417,2.4344,2636.1,2635.6,1.619]
[1724032801418,2.3613,2635.9,2635.6,1.619]
[1724032801573,2.3613,2635.9,2635.6,4.619]
[1724032801764,2.3613,2635.9,2635.6,1.619]
[1724032802603,6.15507,2635.9,2635.4,3.79439]
[1724032802758,2.3221,2635.5,2635.2,3.0]
[1724032802952,2.3221,2635.5,2635.1,0.78650772]
[1724032802953,3.7945,2635.4,2635.3,0.83624769]
[1724032803163,2.3221,2635.3,2635.0,1.619]
[1724032803357,2.3221,2635.3,2635.2,1.619]
[1724032805770,2.3221,2635.3,2635.2,5.41377]
[1724032806380,2.3221,2635.3,2635.2,1.619]
[1724032806870,2.3221,2635.3,2635.1,3.79483]
[1724032807067,2.3221,2635.3,2635.2,1.619]
[1724032808218,2.3221,2635.3,2635.0,4.619]
[1724032808434,5.88123162,2635.9,2635.2,5.41369]
[1724032808638,2.443,2636.0,2635.6,5.41312]
[1724032809022,2.443,2636.0,2635.8,1.619]
[1724032809222,0.2443,2635.9,2635.8,1.619]
[1724032810239,2.443,2636.0,2635.8,1.619]
[1724032810406,2.443,2636.0,2635.8,3.79382]
[1724032810603,2.443,2636.3,2635.9,3.79377]
[1724032811189,0.83242316,2636.2,2635.6,0.83608997]
[1724032811390,2.443,2636.3,2635.8,3.79382]
[1724032813399,2.443,2636.3,2635.9,3.79376]
[1724032813917,12.14,2636.7,2635.6,5.94158681]
[1724032813918,2.4802,2636.6,2635.6,5.94158681]
[1724032814230,2.4802,2636.6,2636.2,3.79333]
[1724032816015,3.107491,2636.6,2636.2,3.79333]
[1724032816630,3.107491,2636.6,2636.0,3.79352]
[1724032816793,6.900291,2636.6,2636.0,3.79352]
[1724032816988,6.900291,2636.6,2636.0,7.58706]
[1724032817189,3.107491,2636.6,2636.1,3.79344]
[1724032817995,3.7932,2636.3,2635.7,6.79392]
[1724032818295,2.2759,2636.2,2635.7,7.62995116]
[1724032818496,2.2759,2636.2,2635.7,6.79392]
[1724032818768,2.2759,2636.2,2635.7,7.6299821]
[1724032819053,2.2759,2636.2,2635.7,6.79392]
[1724032820097,2.3329,2636.1,2635.7,3.0]
[1724032820215,3.79371,2636.0,2635.6,0.83608075]
[1724032820407,6.1265,2636.1,2635.5,3.79434]
[1724032820602,9.9201,2636.1,2635.5,3.79434]
[1724032820861,9.9201,2636.1,2635.5,7.58859]
[1724032820862,7.11851,2636.1,2635.5,7.58859]
[1724032821165,7.11851,2636.1,2635.5,3.79425]
[1724032821664,2.3329,2636.1,2635.7,3.79405]
[1724032822004,2.3329,2636.1,2635.7,7.58802]
[1724032822513,2.2747,2636.4,2635.8,3.7939]
[1724032823804,2.2747,2636.4,2635.7,7.58793]
[1724032824003,3.79319,2636.3,2635.8,3.79387]
[1724032824546,2.2747,2636.4,2635.9,3.79376]
[1724032825243,0.70371117,2636.3,2635.9,3.79376]
[1724032826140,2.2747,2636.4,2635.9,3.79376]
[1724032826306,6.06776,2636.4,2635.9,3.79376]
[1724032828749,2.2747,2636.4,2635.9,3.79376]
[1724032830044,6.06775,2636.4,2635.9,3.79376]
[1724032830547,6.06775,2636.4,2636.0,1.619]
[1724032832352,2.4487,2636.2,2635.8,1.619]
[1724032833135,2.4487,2636.2,2635.5,6.79425]
[1724032833136,3.7936,2636.1,2635.5,7.63027769]
[1724032833324,2.4487,2636.0,2635.6,1.619]
[1724032833654,2.4487,2636.0,2635.6,2.45510545]
[1724032833857,2.4487,2636.0,2635.6,1.619]
[1724032834623,2.4487,2636.0,2635.6,2.45513]
[1724032835260,2.4487,2636.0,2635.6,1.619]
[1724032837771,6.24242,2636.0,2635.7,0.83612176]
[1724032837944,6.9045939,2636.0,2635.6,1.619]
[1724032838149,10.6983339,2636.0,2635.7,0.83612906]
[1724032838336,6.9045939,2636.0,2635.6,1.619]
[1724032838537,6.9045939,2636.0,2635.7,0.83613674]
[1724032838847,6.9045939,2636.0,2635.6,1.619]
[1724032839045,6.9045939,2636.0,2635.7,0.83613824]
[1724032839249,6.9045939,2636.0,2635.6,1.619]
[1724032839471,6.9045939,2636.0,2635.7,0.8361268]
[1724032839671,6.9045939,2636.0,2635.6,1.619]
[1724032840170,6.9045939,2636.0,2635.7,0.83613926]
[1724032840341,6.9045939,2636.0,2635.6,1.619]
[1724032840541,6.9045939,2636.0,2635.7,0.83613867]
[1724032840744,6.9045939,2636.0,2635.2,1.32888559]
[1724032840745,3.79428,2635.6,2635.2,1.32888559]
[1724032840964,3.79428,2635.6,2634.9,7.41429591]
[1724032840965,2.3819,2635.5,2634.9,6.74302559]
[1724032841153,3.79456,2635.4,2635.0,0.83631134]
[1724032841364,2.3819,2635.3,2634.8,1.619]
[1724032841672,2.3819,2635.3,2634.9,0.83635284]
[1724032841860,2.3819,2635.3,2635.0,0.83635284]
[1724032842065,2.3819,2635.3,2634.9,0.83635917]
[1724032842240,2.3819,2635.3,2634.8,1.619]
[1724032842241,6.17656,2635.3,2634.8,1.619]
[1724032842442,6.17656,2635.3,2634.9,0.8363761]
[1724032842638,6.17656,2635.3,2635.0,1.619]
[1724032843779,3.79429,2635.6,2635.2,1.619]
[1724032843780,6.17619,2635.6,2635.2,1.619]
[1724032843939,6.17617,2635.6,2635.2,1.619]
[1724032844277,0.617617,2635.5,2635.0,1.619]
[1724032844587,3.79451,2635.4,2635.0,1.619]
[1724032844781,2.3878,2635.3,2635.0,1.619]
[1724032846046,3.0677927,2635.3,2634.7,2.81664832]
[1724032846255,3.79481,2635.2,2634.8,1.619]
[1724032846849,3.79501,2635.1,2634.7,3.83632218]
[1724032847051,3.79501,2635.1,2634.8,1.619]
[1724032847052,6.18281,2635.1,2634.8,1.619]
[1724032847276,2.3878,2635.1,2635.0,1.619]
[1724032848756,6.22943,2635.4,2635.0,1.619]
[1724032848952,2.4349,2635.4,2635.0,5.41402]
[1724032850364,12.11019162,2635.7,2635.2,5.41376]
[1724032850566,3.79422,2635.6,2635.2,1.619]
[1724032850760,7.58852,2635.6,2635.2,1.619]
[1724032851086,7.58853,2635.6,2635.2,1.619]
[1724032851387,2.3367,2635.5,2635.0,1.619]
[1724032851592,3.79458,2635.4,2635.0,1.619]
[1724032852102,2.3367,2635.3,2634.6,6.79556]
[1724032852262,3.79492,2635.2,2634.8,1.619]
[1724032852769,3.79492,2635.2,2635.0,1.619]
[1724032854156,2.3367,2635.3,2635.0,1.619]
[1724032858762,6.13133,2635.3,2635.0,1.619]
[1724032859082,2.3367,2635.3,2635.0,1.619]
[1724032861399,6.744552,2635.3,2634.8,5.41426]
[1724032861719,3.79498,2635.1,2634.6,6.79558]
[1724032861998,2.792998,2635.0,2634.6,8.41458]
[1724032862295,2.4135,2635.0,2634.8,1.619]
[1724032862508,6.20808,2635.4,2634.8,5.41421]
[1724032862809,6.20808,2635.4,2635.0,1.619]
[1724032863123,2.4135,2635.4,2634.9,3.79517]
[1724032863277,2.4135,2635.4,2635.0,1.619]
[1724032863911,6.208,2635.4,2635.0,1.619]
[1724032864120,3.79485,2635.2,2634.8,1.619]
[1724032864328,3.79485,2635.2,2634.7,1.619]
[1724032864329,2.265,2635.1,2634.7,1.619]
[1724032864493,2.265,2635.1,2634.7,5.41447]
[1724032865217,2.265,2635.1,2634.7,1.619]
[1724032866324,2.265,2635.1,2634.7,2.45541165]
[1724032866542,2.265,2635.1,2634.7,1.619]
[1724032867545,2.265,2635.1,2634.7,5.41447]
[1724032867909,2.265,2635.1,2634.7,1.619]
[1724032868536,3.250452,2635.1,2634.4,3.79588]
[1724032868738,3.79528,2634.9,2634.5,0.83644138]
[1724032868901,3.79528,2634.9,2634.4,1.619]
[1724032868902,3.79528,2634.9,2634.6,0.83644138]
[1724032869102,3.79528,2634.9,2634.4,4.619]
[1724032869317,3.79528,2634.9,2634.5,0.8364547]
[1724032869531,4.37657418,2634.9,2634.6,0.8364547]
[1724032869702,4.37657418,2634.9,2634.7,0.8364547]
[1724032870032,4.37657418,2634.9,2634.6,1.619]
[1724032870233,4.37657418,2634.9,2634.7,0.83646325]
[1724032870463,4.37657418,2634.9,2634.6,1.619]
[1724032870738,4.37657418,2634.9,2634.7,0.83647708]
[1724032870911,1.04543542,2634.8,2634.6,1.619]
[1724032871367,1.04543542,2634.8,2634.4,4.619]
[1724032871547,1.04543542,2634.8,2634.5,0.8365164]
[1724032871705,6.61706154,2634.7,2634.6,0.8365164]
[1724032871905,6.61706154,2634.7,2634.1,1.32916852]
[1724032871906,2.3375,2634.6,2634.1,1.32916852]
[1724032872220,2.99920615,2634.6,2634.2,0.8366187]
[1724032872415,2.99920615,2634.6,2633.9,1.32916852]
[1724032872416,2.3375,2634.4,2633.9,1.32916852]
[1724032872605,2.3375,2634.1,2634.0,0.83663307]
[1724032872803,2.3375,2634.1,2634.0,0.83670451]
[1724032873008,2.3375,2634.1,2633.9,1.619]
[1724032873510,2.3375,2634.1,2633.7,5.4159]
[1724032873824,2.3375,2634.1,2633.8,0.83671576]
[1724032874028,2.3375,2634.1,2633.7,5.4159]
[1724032874226,2.3375,2634.1,2633.8,0.83671914]
[1724032874519,2.3375,2634.1,2633.7,3.7969]
[1724032874716,2.3375,2634.1,2633.8,3.79678]
[1724032875338,2.3375,2634.1,2633.7,3.79686]
[1724032875724,2.3375,2634.1,2633.7,4.63354354]
[1724032875930,2.3375,2634.1,2633.7,3.79686]
[1724032877856,2.4758,2634.6,2634.0,3.79644]
[1724032878012,6.27152,2634.6,2634.0,3.79649]
[1724032878216,2.4758,2634.3,2633.8,0.83668354]
[1724032878440,2.4758,2634.3,2633.8,3.79672]
[1724032878654,6.27188,2634.3,2633.7,4.63347387]
[1724032878835,6.27188,2634.3,2633.7,3.7968]
[1724032879360,7.278655,2634.3,2633.7,3.7968]
[1724032880555,7.278655,2634.3,2633.8,3.79677]
[1724032882795,4.802855,2634.3,2633.7,3.7968]
[1724032883094,4.802855,2634.3,2633.5,3.83671223]
[1724032883095,3.79644,2634.1,2633.5,6.79713]
[1724032883384,2.4057,2634.0,2633.5,6.79713]
[1724032883900,2.4057,2633.9,2633.5,6.79713]
[1724032884383,2.4057,2633.8,2633.3,3.79743]
[1724032884624,2.64627,2633.8,2633.3,3.79743]
[1724032885093,2.64627,2633.8,2633.3,7.59486]
[1724032885384,2.64627,2633.8,2633.3,3.79743]
[1724032886166,2.4057,2633.8,2633.5,3.79722]
[1724032886371,2.4057,2633.8,2633.5,7.59436]
[1724032886570,2.342,2634.0,2633.5,3.79714]
[1724032886912,2.955841,2634.0,2633.5,3.79714]
[1724032887255,2.4425,2633.8,2633.3,3.79741]
[1724032888969,2.4425,2633.8,2633.4,3.79725]
[1724032889200,2.43976646,2633.8,2633.5,3.79721]
[1724032889397,3.79615,2634.3,2633.6,3.79706]
[1724032889786,7.59236,2634.3,2633.7,3.79686]
[1724032889960,8.93968516,2634.3,2633.7,3.79686]
[1724032890525,3.79622,2634.2,2633.7,3.79686]
[1724032890726,18.02123162,2634.8,2633.9,3.892]
[1724032891015,18.02123162,2634.8,2634.2,3.79608]
[1724032891016,3.79535,2634.8,2634.2,3.79608]
[1724032891332,3.79535,2634.8,2634.3,3.79606]
[1724032891530,7.5903,2635.0,2634.3,3.79606]
[1724032891666,3.79522,2634.9,2634.3,3.79606]
[1724032891865,4.17571687,2635.0,2634.3,3.79606]
[1724032892120,2.2896,2634.9,2634.3,3.79606]
[1724032892299,6.08487,2634.9,2634.3,3.79606]
[1724032892986,3.79536,2634.8,2634.2,3.79608]
[1724032893173,3.79551,2634.7,2634.2,3.79608]
[1724032893365,2.3879,2634.7,2634.2,3.79608]
[1724032895723,2.3879,2634.7,2634.3,3.79598]
[1724032899722,2.3879,2634.7,2634.3,3.79606]
[1724032900528,2.3879,2634.7,2634.6,3.79564]
[1724032900727,2.3879,2634.7,2634.5,3.79574]
[1724032902132,9.67624162,2635.1,2634.5,3.79574]
[1724032902133,2.388,2635.0,2634.5,7.59145]
[1724032902447,2.388,2635.0,2634.5,3.79571]
[1724032902849,3.79507,2635.0,2634.5,3.79571]
[1724032903009,2.388,2634.9,2634.5,3.79571]
[1724032903407,2.388,2634.9,2634.5,3.7957]
[1724032904038,2.388,2634.9,2634.6,3.79561]
[1724032904205,2.388,2634.9,2634.8,3.79535]
[1724032905552,2.388,2634.9,2634.6,5.4165]
[1724032905835,2.388,2634.9,2634.7,3.79541]
[1724032906140,8.26923162,2635.1,2634.7,3.79541]
[1724032908012,12.06416162,2635.1,2634.6,1.621]
[1724032908347,12.06416162,2635.1,2634.4,3.79583]
[1724032908348,2.4751,2634.8,2634.4,5.41683]
[1724032908550,2.4751,2634.8,2634.5,3.79578]
[1724032908704,2.4751,2634.8,2634.4,1.621]
[1724032909899,2.4751,2634.8,2634.4,5.4169]
[1724032911403,2.4751,2634.8,2634.4,1.621]
[1724032912840,2.4751,2634.8,2634.4,5.41685]
[1724032914268,2.4281,2635.0,2634.5,7.59146]
[1724032914408,2.4281,2635.0,2634.8,1.621]
[1724032914928,2.4281,2635.0,2634.7,3.79541]
[1724032915135,2.4281,2635.0,2634.7,3.7954]
[1724032915446,2.4281,2635.0,2634.6,1.621]